[Event "Titled Tuesday Blitz March 21 Early 2023"]
[White "Makarian, Rudik"]
[Black "Vetokhin, Ilia"]
[WhiteFideId "44105681"]
[BlackFideId "24156078"]
[WhiteElo "2436"]
[BlackElo "2205"]
[Result "1-0"]
[Round "01"]
[TimeControl "180+2"]
[Date "2023.03.21"]
[WhiteClock "0:00:11"]
[BlackClock "0:00:05"]

1. d4 {[%clk 0:03:00]}  Nf6 {[%clk 0:02:59]} 2. c4 {[%clk 0:03:01]}  e6 {[%clk 0:03:00]} 3. Nf3 {[%clk 0:03:01]}  d5 {[%clk 0:02:55]} 4. Nc3 {[%clk 0:03:02]}  Bb4 {[%clk 0:02:55]} 5. Qa4+ {[%clk 0:02:54]}  Nc6 {[%clk 0:02:55]} 6. a3 {[%clk 0:02:55]}  Bxc3+ {[%clk 0:02:37]} 7. bxc3 {[%clk 0:02:56]}  O-O {[%clk 0:02:37]} 8. Bg5 {[%clk 0:02:54]}  dxc4 {[%clk 0:02:25]} 9. e4 {[%clk 0:02:22]}  Qd7 {[%clk 0:02:06]} 10. Bxf6 {[%clk 0:02:13]}  gxf6 {[%clk 0:02:06]} 11. Qxc4 {[%clk 0:02:09]}  Na5 {[%clk 0:01:34]} 12. Qb4 {[%clk 0:02:02]}  b6 {[%clk 0:01:34]} 13. Bd3 {[%clk 0:01:51]}  c5 {[%clk 0:01:27]} 14. Qb1 {[%clk 0:01:46]}  Bb7 {[%clk 0:01:04]} 15. O-O {[%clk 0:01:44]}  Kh8 {[%clk 0:00:47]} 16. d5 {[%clk 0:01:24]}  c4 {[%clk 0:00:30]} 17. Bc2 {[%clk 0:01:20]}  e5 {[%clk 0:00:23]} 18. Nh4 {[%clk 0:01:11]}  Bc8 {[%clk 0:00:21]} 19. f3 {[%clk 0:01:05]}  Nb7 {[%clk 0:00:21]} 20. Qc1 {[%clk 0:01:04]}  Nd6 {[%clk 0:00:14]} 21. Qh6 {[%clk 0:01:03]}  Qe7 {[%clk 0:00:14]} 22. Kh1 {[%clk 0:01:00]}  Rg8 {[%clk 0:00:14]} 23. a4 {[%clk 0:00:56]}  Bd7 {[%clk 0:00:11]} 24. f4 {[%clk 0:00:37]}  Ne8 {[%clk 0:00:11]} 25. f5 {[%clk 0:00:34]}  Qf8 {[%clk 0:00:11]} 26. Qe3 {[%clk 0:00:26]}  Rg5 {[%clk 0:00:05]} 27. Rf3 {[%clk 0:00:25]}  Qg7 {[%clk 0:00:04]} 28. a5 {[%clk 0:00:23]}  b5 {[%clk 0:00:03]} 29. a6 {[%clk 0:00:23]}  Qf8 {[%clk 0:00:01]} 30. Rg3 {[%clk 0:00:20]}  h6 {[%clk 0:00:01]} 31. Rh3 {[%clk 0:00:20]}  Kh7 {[%clk 0:00:01]} 32. Nf3 {[%clk 0:00:20]}  Kg7 {[%clk 0:00:02]} 33. Nxg5 {[%clk 0:00:20]}  fxg5 {[%clk 0:00:03]} 34. Rf3 {[%clk 0:00:16]}  f6 {[%clk 0:00:03]} 35. g4 {[%clk 0:00:13]}  Qe7 {[%clk 0:00:03]} 36. Kg2 {[%clk 0:00:13]}  Qd6 {[%clk 0:00:02]} 37. h4 {[%clk 0:00:14]}  Nc7 {[%clk 0:00:01]} 38. hxg5 {[%clk 0:00:13]}  fxg5 {[%clk 0:00:02]} 39. Rh1 {[%clk 0:00:13]}  Ne8 {[%clk 0:00:02]} 40. Rfh3 {[%clk 0:00:13]}  Qf6 {[%clk 0:00:02]} 41. Rxh6 {[%clk 0:00:13]}  Qxh6 {[%clk 0:00:03]} 42. Rxh6 {[%clk 0:00:13]}  Kxh6 {[%clk 0:00:04]} 43. Qh3+ {[%clk 0:00:13]}  Kg7 {[%clk 0:00:04]} 44. Qh5 {[%clk 0:00:14]}  Kf6 {[%clk 0:00:05]} 45. Qg6+ {[%clk 0:00:13]}  Ke7 {[%clk 0:00:06]} 46. f6+ {[%clk 0:00:12]}  Nxf6 {[%clk 0:00:05]} 47. Qg7+ {[%clk 0:00:12]}  Kd6 {[%clk 0:00:05]} 48. Qxf6+ {[%clk 0:00:13]}  Kc5 {[%clk 0:00:05]} 49. Qe7+ {[%clk 0:00:12]}  Kb6 {[%clk 0:00:04]} 50. Qd6+ {[%clk 0:00:11]}  Ka5 {[%clk 0:00:05]} 51. Qxd7 {[%clk 0:00:11]}  b4 {[%clk 0:00:06]} 52. Qc7+ {[%clk 0:00:10]}  Kxa6 {[%clk 0:00:05]} 53. Qc6+ {[%clk 0:00:11]} 1-0


[Site "https://www.chess.com"]

[Event "Titled Tuesday Blitz March 21 Early 2023"]
[White "Kamsky, Gata"]
[Black "Janaszak, Dawid"]
[WhiteFideId "2000024"]
[BlackFideId "1119206"]
[WhiteElo "2666"]
[BlackElo "2220"]
[Result "1-0"]
[Round "01"]
[TimeControl "180+2"]
[Date "2023.03.21"]
[WhiteClock "0:00:07"]
[BlackClock "0:00:10"]

1. e4 {[%clk 0:02:59]}  e5 {[%clk 0:02:58]} 2. Nf3 {[%clk 0:02:58]}  Nc6 {[%clk 0:02:54]} 3. Bb5 {[%clk 0:02:58]}  a6 {[%clk 0:02:53]} 4. Ba4 {[%clk 0:02:57]}  Nf6 {[%clk 0:02:53]} 5. O-O {[%clk 0:02:55]}  b5 {[%clk 0:02:48]} 6. Bb3 {[%clk 0:02:54]}  Bc5 {[%clk 0:02:48]} 7. c3 {[%clk 0:02:51]}  d6 {[%clk 0:02:44]} 8. a4 {[%clk 0:02:50]}  Bb7 {[%clk 0:02:39]} 9. d3 {[%clk 0:02:46]}  O-O {[%clk 0:02:38]} 10. Na3 {[%clk 0:02:43]}  b4 {[%clk 0:02:07]} 11. Nc4 {[%clk 0:02:41]}  bxc3 {[%clk 0:02:01]} 12. bxc3 {[%clk 0:02:40]}  h6 {[%clk 0:01:55]} 13. a5 {[%clk 0:02:33]}  Rb8 {[%clk 0:01:49]} 14. Be3 {[%clk 0:02:27]}  Bxe3 {[%clk 0:01:46]} 15. Nxe3 {[%clk 0:02:26]}  Ne7 {[%clk 0:01:45]} 16. Re1 {[%clk 0:02:05]}  Ng6 {[%clk 0:01:44]} 17. Nf5 {[%clk 0:01:45]}  Kh7 {[%clk 0:01:28]} 18. Bc2 {[%clk 0:01:40]}  Ne7 {[%clk 0:01:21]} 19. Ng3 {[%clk 0:01:37]}  c5 {[%clk 0:01:17]} 20. d4 {[%clk 0:01:37]}  cxd4 {[%clk 0:01:16]} 21. cxd4 {[%clk 0:01:36]}  Ng6 {[%clk 0:01:15]} 22. Qd2 {[%clk 0:01:27]}  Re8 {[%clk 0:01:06]} 23. Ba4 {[%clk 0:01:14]}  Rf8 {[%clk 0:00:59]} 24. Rad1 {[%clk 0:01:11]}  Qc7 {[%clk 0:00:56]} 25. Rc1 {[%clk 0:01:01]}  Qd8 {[%clk 0:00:53]} 26. h4 {[%clk 0:00:55]}  Rc8 {[%clk 0:00:51]} 27. Rb1 {[%clk 0:00:47]}  Bc6 {[%clk 0:00:50]} 28. Bxc6 {[%clk 0:00:45]}  Rxc6 {[%clk 0:00:51]} 29. h5 {[%clk 0:00:44]}  Nf4 {[%clk 0:00:51]} 30. dxe5 {[%clk 0:00:43]}  dxe5 {[%clk 0:00:51]} 31. Qxd8 {[%clk 0:00:39]}  Rxd8 {[%clk 0:00:52]} 32. Nxe5 {[%clk 0:00:38]}  Rc5 {[%clk 0:00:51]} 33. Nxf7 {[%clk 0:00:33]}  Rd7 {[%clk 0:00:44]} 34. e5 {[%clk 0:00:34]}  Rxf7 {[%clk 0:00:40]} 35. exf6 {[%clk 0:00:34]}  Rxa5 {[%clk 0:00:33]} 36. fxg7 {[%clk 0:00:28]}  Rxg7 {[%clk 0:00:33]} 37. Ra1 {[%clk 0:00:25]}  Rag5 {[%clk 0:00:26]} 38. Rxa6 {[%clk 0:00:21]}  Nxh5 {[%clk 0:00:27]} 39. Nxh5 {[%clk 0:00:20]}  Rxh5 {[%clk 0:00:26]} 40. g3 {[%clk 0:00:20]}  Rhg5 {[%clk 0:00:25]} 41. Kg2 {[%clk 0:00:20]}  R5g6 {[%clk 0:00:26]} 42. Ree6 {[%clk 0:00:19]}  Rxe6 {[%clk 0:00:26]} 43. Rxe6 {[%clk 0:00:20]}  Ra7 {[%clk 0:00:25]} 44. f4 {[%clk 0:00:20]}  Ra3 {[%clk 0:00:24]} 45. Kh3 {[%clk 0:00:19]}  Kg7 {[%clk 0:00:23]} 46. Kh4 {[%clk 0:00:19]}  Rb3 {[%clk 0:00:23]} 47. f5 {[%clk 0:00:18]}  Rf3 {[%clk 0:00:23]} 48. g4 {[%clk 0:00:17]}  Rf2 {[%clk 0:00:21]} 49. Re7+ {[%clk 0:00:17]}  Kf6 {[%clk 0:00:15]} 50. Rh7 {[%clk 0:00:16]}  Rh2+ {[%clk 0:00:15]} 51. Kg3 {[%clk 0:00:16]}  Rh1 {[%clk 0:00:16]} 52. Rh8 {[%clk 0:00:14]}  Kg7 {[%clk 0:00:16]} 53. Rb8 {[%clk 0:00:13]}  Kf6 {[%clk 0:00:16]} 54. Rb6+ {[%clk 0:00:13]}  Kg7 {[%clk 0:00:16]} 55. Kg2 {[%clk 0:00:10]}  Rh4 {[%clk 0:00:16]} 56. Rg6+ {[%clk 0:00:09]}  Kh7 {[%clk 0:00:16]} 57. Kg3 {[%clk 0:00:09]}  Rh1 {[%clk 0:00:16]} 58. Rd6 {[%clk 0:00:09]}  Rg1+ {[%clk 0:00:16]} 59. Kf4 {[%clk 0:00:09]}  Rf1+ {[%clk 0:00:16]} 60. Ke5 {[%clk 0:00:10]}  Rg1 {[%clk 0:00:16]} 61. Rd4 {[%clk 0:00:08]}  Re1+ {[%clk 0:00:11]} 62. Kf6 {[%clk 0:00:08]}  Rg1 {[%clk 0:00:10]} 63. Kf7 {[%clk 0:00:07]}  Kh8 {[%clk 0:00:10]} 64. Kg6 {[%clk 0:00:07]} 1-0


[Site "https://www.chess.com"]

[Event "Titled Tuesday Blitz March 21 Early 2023"]
[White "Lehtosaari, Mauri"]
[Black "Indjic, Aleksandar"]
[WhiteFideId "501999"]
[BlackFideId "911925"]
[WhiteElo "2519"]
[BlackElo "2614"]
[Result "0-1"]
[Round "01"]
[TimeControl "180+2"]
[Date "2023.03.21"]
[WhiteClock "0:00:10"]
[BlackClock "0:01:05"]

1. d4 {[%clk 0:03:00]}  Nf6 {[%clk 0:02:57]} 2. Nf3 {[%clk 0:03:00]}  e6 {[%clk 0:02:57]} 3. Bg5 {[%clk 0:03:00]}  h6 {[%clk 0:02:57]} 4. Bxf6 {[%clk 0:02:59]}  Qxf6 {[%clk 0:02:58]} 5. Nbd2 {[%clk 0:02:59]}  d6 {[%clk 0:02:58]} 6. e4 {[%clk 0:02:59]}  Nd7 {[%clk 0:02:58]} 7. Bd3 {[%clk 0:02:59]}  e5 {[%clk 0:02:57]} 8. c3 {[%clk 0:02:59]}  Qe7 {[%clk 0:02:57]} 9. a4 {[%clk 0:02:58]}  g6 {[%clk 0:02:57]} 10. O-O {[%clk 0:02:58]}  Bg7 {[%clk 0:02:57]} 11. Re1 {[%clk 0:02:58]}  O-O {[%clk 0:02:57]} 12. Qb3 {[%clk 0:02:53]}  a5 {[%clk 0:02:55]} 13. Rad1 {[%clk 0:02:48]}  Nb6 {[%clk 0:02:54]} 14. h3 {[%clk 0:02:31]}  Kh7 {[%clk 0:02:54]} 15. Nf1 {[%clk 0:02:06]}  Be6 {[%clk 0:02:53]} 16. Qc2 {[%clk 0:02:04]}  Kh8 {[%clk 0:02:44]} 17. Ne3 {[%clk 0:01:56]}  Bd7 {[%clk 0:02:42]} 18. b3 {[%clk 0:01:49]}  c6 {[%clk 0:02:39]} 19. dxe5 {[%clk 0:01:34]}  dxe5 {[%clk 0:02:38]} 20. Nc4 {[%clk 0:01:34]}  Nc8 {[%clk 0:02:29]} 21. Bf1 {[%clk 0:01:28]}  Be8 {[%clk 0:02:25]} 22. Rd2 {[%clk 0:01:22]}  b5 {[%clk 0:02:18]} 23. axb5 {[%clk 0:01:22]}  cxb5 {[%clk 0:02:19]} 24. Ne3 {[%clk 0:01:22]}  Nb6 {[%clk 0:02:18]} 25. Red1 {[%clk 0:01:17]}  Bc6 {[%clk 0:02:19]} 26. Nd5 {[%clk 0:01:16]}  Bxd5 {[%clk 0:02:14]} 27. exd5 {[%clk 0:01:17]}  Qd7 {[%clk 0:02:07]} 28. c4 {[%clk 0:01:07]}  bxc4 {[%clk 0:01:51]} 29. bxc4 {[%clk 0:01:05]}  Rac8 {[%clk 0:01:47]} 30. c5 {[%clk 0:00:55]}  e4 {[%clk 0:01:47]} 31. Qxe4 {[%clk 0:00:24]}  Rxc5 {[%clk 0:01:42]} 32. d6 {[%clk 0:00:25]}  Rd8 {[%clk 0:01:39]} 33. g3 {[%clk 0:00:20]}  Kh7 {[%clk 0:01:33]} 34. Qe3 {[%clk 0:00:19]}  Qc6 {[%clk 0:01:24]} 35. h4 {[%clk 0:00:16]}  Nd5 {[%clk 0:01:13]} 36. Qe4 {[%clk 0:00:13]}  f5 {[%clk 0:01:11]} 37. Qd3 {[%clk 0:00:10]}  Nc3 {[%clk 0:01:11]} 38. Re1 {[%clk 0:00:09]}  Rd5 {[%clk 0:01:09]} 39. Qc2 {[%clk 0:00:09]}  Rxd2 {[%clk 0:01:08]} 40. Qxd2 {[%clk 0:00:10]}  Qxf3 {[%clk 0:01:07]} 41. Re3 {[%clk 0:00:09]}  Qc6 {[%clk 0:01:06]} 42. Qxc3 {[%clk 0:00:09]}  Qxc3 {[%clk 0:01:05]} 43. Rxc3 {[%clk 0:00:10]}  Bxc3 {[%clk 0:01:05]} 0-1


[Site "https://www.chess.com"]

[Event "Titled Tuesday Blitz March 21 Early 2023"]
[White "Praggnanandhaa R"]
[Black "koncheto"]
[WhiteFideId "25059530"]
[WhiteElo "2623"]
[BlackElo "2519"]
[Result "1-0"]
[Round "01"]
[TimeControl "180+2"]
[Date "2023.03.21"]
[WhiteClock "0:00:04"]
[BlackClock "0:00:01"]

1. c4 {[%clk 0:02:59]}  Nf6 {[%clk 0:02:58]} 2. Nc3 {[%clk 0:02:58]}  e6 {[%clk 0:02:52]} 3. d4 {[%clk 0:02:53]}  c5 {[%clk 0:02:52]} 4. d5 {[%clk 0:02:53]}  exd5 {[%clk 0:02:53]} 5. cxd5 {[%clk 0:02:54]}  d6 {[%clk 0:02:54]} 6. e4 {[%clk 0:02:53]}  g6 {[%clk 0:02:54]} 7. Nf3 {[%clk 0:02:42]}  a6 {[%clk 0:02:54]} 8. a4 {[%clk 0:02:40]}  Bg4 {[%clk 0:02:53]} 9. Be2 {[%clk 0:02:38]}  Bxf3 {[%clk 0:02:53]} 10. Bxf3 {[%clk 0:02:38]}  Bg7 {[%clk 0:02:49]} 11. O-O {[%clk 0:02:39]}  O-O {[%clk 0:02:49]} 12. Bf4 {[%clk 0:02:29]}  Qe7 {[%clk 0:02:45]} 13. Qb3 {[%clk 0:02:26]}  Qc7 {[%clk 0:02:16]} 14. a5 {[%clk 0:02:17]}  Nbd7 {[%clk 0:02:11]} 15. h3 {[%clk 0:02:17]}  Rfc8 {[%clk 0:01:29]} 16. Qa3 {[%clk 0:02:13]}  Ne8 {[%clk 0:01:23]} 17. Rfc1 {[%clk 0:02:11]}  Ne5 {[%clk 0:01:22]} 18. Be2 {[%clk 0:02:11]}  c4 {[%clk 0:01:10]} 19. Be3 {[%clk 0:02:11]}  Nd3 {[%clk 0:00:50]} 20. Rd1 {[%clk 0:02:03]}  Nc5 {[%clk 0:00:45]} 21. Bxc4 {[%clk 0:01:40]}  Nxe4 {[%clk 0:00:33]} 22. Nxe4 {[%clk 0:01:40]}  Qxc4 {[%clk 0:00:34]} 23. Nxd6 {[%clk 0:01:40]}  Nxd6 {[%clk 0:00:33]} 24. Qxd6 {[%clk 0:01:41]}  Bxb2 {[%clk 0:00:33]} 25. Rab1 {[%clk 0:01:41]}  Qc2 {[%clk 0:00:23]} 26. Qb6 {[%clk 0:01:36]}  Be5 {[%clk 0:00:20]} 27. d6 {[%clk 0:01:32]}  Rc6 {[%clk 0:00:07]} 28. Qxb7 {[%clk 0:01:32]}  Rd8 {[%clk 0:00:08]} 29. Bh6 {[%clk 0:00:17]}  Rcxd6 {[%clk 0:00:05]} 30. Rxd6 {[%clk 0:00:17]}  Bxd6 {[%clk 0:00:06]} 31. Re1 {[%clk 0:00:15]}  Qf5 {[%clk 0:00:04]} 32. Qxa6 {[%clk 0:00:13]}  Bb4 {[%clk 0:00:04]} 33. Ra1 {[%clk 0:00:04]}  Bd6 {[%clk 0:00:01]} 34. Qb6 {[%clk 0:00:04]}  Qe5 {[%clk 0:00:01]} 35. Qxd8+ {[%clk 0:00:04]} 1-0


[Site "https://www.chess.com"]

[Event "Titled Tuesday Blitz March 21 Early 2023"]
[White "Reprintsev, Alexander"]
[Black "Tari, Aryan"]
[WhiteFideId "14100541"]
[BlackFideId "1510045"]
[WhiteElo "2229"]
[BlackElo "2583"]
[Result "0-1"]
[Round "01"]
[TimeControl "180+2"]
[Date "2023.03.21"]
[WhiteClock "0:00:48"]
[BlackClock "0:01:00"]

1. e4 {[%clk 0:02:59]}  e5 {[%clk 0:02:55]} 2. Nf3 {[%clk 0:02:58]}  Nc6 {[%clk 0:02:55]} 3. Bc4 {[%clk 0:02:58]}  Bc5 {[%clk 0:02:54]} 4. b4 {[%clk 0:02:54]}  Bb6 {[%clk 0:02:47]} 5. a4 {[%clk 0:02:50]}  a6 {[%clk 0:02:44]} 6. c3 {[%clk 0:02:42]}  Nf6 {[%clk 0:02:42]} 7. Qe2 {[%clk 0:02:18]}  O-O {[%clk 0:02:37]} 8. d3 {[%clk 0:02:16]}  d5 {[%clk 0:02:35]} 9. Bb3 {[%clk 0:02:15]}  Be6 {[%clk 0:02:24]} 10. Bc2 {[%clk 0:02:14]}  h6 {[%clk 0:02:20]} 11. O-O {[%clk 0:02:13]}  Re8 {[%clk 0:01:59]} 12. Rd1 {[%clk 0:02:13]}  Qe7 {[%clk 0:01:46]} 13. h3 {[%clk 0:02:11]}  dxe4 {[%clk 0:01:32]} 14. dxe4 {[%clk 0:02:11]}  Nh5 {[%clk 0:01:33]} 15. Na3 {[%clk 0:02:05]}  Qf6 {[%clk 0:01:27]} 16. Kh1 {[%clk 0:01:29]}  Ne7 {[%clk 0:01:17]} 17. Nc4 {[%clk 0:01:25]}  Bxc4 {[%clk 0:01:17]} 18. Qxc4 {[%clk 0:01:24]}  Bxf2 {[%clk 0:01:18]} 19. Qxc7 {[%clk 0:01:18]}  Ng6 {[%clk 0:01:16]} 20. Rd6 {[%clk 0:01:13]}  Re7 {[%clk 0:01:03]} 21. Rxf6 {[%clk 0:00:57]}  Rxc7 {[%clk 0:01:02]} 22. Rxg6 {[%clk 0:00:55]}  fxg6 {[%clk 0:01:00]} 23. Bb2 {[%clk 0:00:51]}  Ng3+ {[%clk 0:00:59]} 24. Kh2 {[%clk 0:00:51]}  Ne2 {[%clk 0:01:00]} 25. Nxe5 {[%clk 0:00:48]}  Bg3+ {[%clk 0:01:00]} 0-1


[Site "https://www.chess.com"]

[Event "Titled Tuesday Blitz March 21 Early 2023"]
[White "Sjugirov, Sanan"]
[Black "Luo, Terry"]
[WhiteFideId "4189302"]
[BlackFideId "30931045"]
[WhiteElo "2569"]
[BlackElo "2265"]
[Result "1-0"]
[Round "01"]
[TimeControl "180+2"]
[Date "2023.03.21"]
[WhiteClock "0:00:05"]
[BlackClock "0:00:12"]

1. d4 {[%clk 0:03:00]}  Nf6 {[%clk 0:03:00]} 2. c4 {[%clk 0:03:00]}  g6 {[%clk 0:03:01]} 3. Nc3 {[%clk 0:03:00]}  Bg7 {[%clk 0:03:01]} 4. e4 {[%clk 0:03:00]}  d6 {[%clk 0:03:02]} 5. Nf3 {[%clk 0:02:57]}  O-O {[%clk 0:03:02]} 6. Be2 {[%clk 0:02:58]}  e5 {[%clk 0:03:02]} 7. O-O {[%clk 0:02:58]}  Nc6 {[%clk 0:03:02]} 8. d5 {[%clk 0:02:58]}  Ne7 {[%clk 0:03:02]} 9. b4 {[%clk 0:02:56]}  Nh5 {[%clk 0:02:56]} 10. Re1 {[%clk 0:02:50]}  f5 {[%clk 0:02:55]} 11. a4 {[%clk 0:02:44]}  Nf4 {[%clk 0:02:42]} 12. Bf1 {[%clk 0:02:39]}  fxe4 {[%clk 0:02:42]} 13. Nxe4 {[%clk 0:02:39]}  Bg4 {[%clk 0:02:43]} 14. Ra3 {[%clk 0:02:37]}  Qd7 {[%clk 0:02:31]} 15. h3 {[%clk 0:02:28]}  Bf5 {[%clk 0:02:31]} 16. Bxf4 {[%clk 0:02:01]}  exf4 {[%clk 0:02:31]} 17. Neg5 {[%clk 0:02:02]}  Rae8 {[%clk 0:02:19]} 18. Ne6 {[%clk 0:02:01]}  Bxe6 {[%clk 0:02:19]} 19. dxe6 {[%clk 0:01:55]}  Qc6 {[%clk 0:02:15]} 20. Bd3 {[%clk 0:01:38]}  Nf5 {[%clk 0:02:12]} 21. Be4 {[%clk 0:01:38]}  Qb6 {[%clk 0:02:11]} 22. a5 {[%clk 0:01:26]}  Qxb4 {[%clk 0:02:08]} 23. Rb3 {[%clk 0:01:26]}  Qxa5 {[%clk 0:02:07]} 24. Rxb7 {[%clk 0:01:20]}  Nd4 {[%clk 0:01:35]} 25. e7 {[%clk 0:01:10]}  Nxf3+ {[%clk 0:00:50]} 26. Bxf3 {[%clk 0:01:08]}  Rf7 {[%clk 0:00:47]} 27. Bd5 {[%clk 0:01:05]}  Bf6 {[%clk 0:00:48]} 28. Re4 {[%clk 0:00:35]}  Be5 {[%clk 0:00:31]} 29. Rb5 {[%clk 0:00:26]}  Qa3 {[%clk 0:00:20]} 30. Bxf7+ {[%clk 0:00:12]}  Kxf7 {[%clk 0:00:21]} 31. Qd5+ {[%clk 0:00:10]}  Kf6 {[%clk 0:00:15]} 32. Rb1 {[%clk 0:00:06]}  Rxe7 {[%clk 0:00:15]} 33. Qg8 {[%clk 0:00:06]}  Qa2 {[%clk 0:00:13]} 34. Rbe1 {[%clk 0:00:05]}  Qb2 {[%clk 0:00:13]} 35. Qf8+ {[%clk 0:00:03]}  Rf7 {[%clk 0:00:13]} 36. Qh8+ {[%clk 0:00:04]}  Ke6 {[%clk 0:00:13]} 37. Qe8+ {[%clk 0:00:04]}  Kf6 {[%clk 0:00:13]} 38. Qh8+ {[%clk 0:00:03]}  Ke6 {[%clk 0:00:13]} 39. Qc8+ {[%clk 0:00:03]}  Kf6 {[%clk 0:00:13]} 40. Qe8 {[%clk 0:00:03]}  Re7 {[%clk 0:00:13]} 41. Qf8+ {[%clk 0:00:03]}  Ke6 {[%clk 0:00:14]} 42. Qh6 {[%clk 0:00:03]}  Kd7 {[%clk 0:00:14]} 43. Qh4 {[%clk 0:00:04]}  a5 {[%clk 0:00:12]} 44. Qg4+ {[%clk 0:00:04]}  Kc6 {[%clk 0:00:12]} 45. Qf3 {[%clk 0:00:04]}  Kd7 {[%clk 0:00:13]} 46. c5 {[%clk 0:00:05]}  a4 {[%clk 0:00:12]} 47. cxd6 {[%clk 0:00:05]}  cxd6 {[%clk 0:00:13]} 48. Rxa4 {[%clk 0:00:05]}  Qc3 {[%clk 0:00:12]} 49. Qxc3 {[%clk 0:00:05]}  Bd4 {[%clk 0:00:12]} 50. Ra7+ {[%clk 0:00:05]} 1-0


[Site "https://www.chess.com"]

[Event "Titled Tuesday Blitz March 21 Early 2023"]
[White "Santos Flores, Alberto"]
[Black "Chigaev, Maksim"]
[WhiteFideId "3601234"]
[BlackFideId "4108116"]
[WhiteElo "2235"]
[BlackElo "2547"]
[Result "1-0"]
[Round "01"]
[TimeControl "180+2"]
[Date "2023.03.21"]
[WhiteClock "0:00:52"]
[BlackClock "0:00:11"]

1. e4 {[%clk 0:02:58]}  c5 {[%clk 0:02:59]} 2. Nf3 {[%clk 0:02:58]}  Nc6 {[%clk 0:02:59]} 3. Nc3 {[%clk 0:02:57]}  g6 {[%clk 0:02:59]} 4. d4 {[%clk 0:02:57]}  cxd4 {[%clk 0:03:00]} 5. Nxd4 {[%clk 0:02:58]}  Bg7 {[%clk 0:03:01]} 6. Be3 {[%clk 0:02:58]}  Nf6 {[%clk 0:03:01]} 7. Bc4 {[%clk 0:02:59]}  O-O {[%clk 0:03:02]} 8. Bb3 {[%clk 0:02:59]}  Re8 {[%clk 0:03:01]} 9. f3 {[%clk 0:02:59]}  e6 {[%clk 0:03:01]} 10. f4 {[%clk 0:02:59]}  d6 {[%clk 0:03:01]} 11. Ndb5 {[%clk 0:02:59]}  Re7 {[%clk 0:03:02]} 12. Nxd6 {[%clk 0:02:51]}  Nd7 {[%clk 0:03:01]} 13. e5 {[%clk 0:02:42]}  Ndxe5 {[%clk 0:02:12]} 14. fxe5 {[%clk 0:02:42]}  Bxe5 {[%clk 0:02:03]} 15. Nxc8 {[%clk 0:02:37]}  Qxc8 {[%clk 0:02:03]} 16. O-O {[%clk 0:02:35]}  Qc7 {[%clk 0:02:04]} 17. h3 {[%clk 0:02:31]}  Rd8 {[%clk 0:02:05]} 18. Qf3 {[%clk 0:02:29]}  Nd4 {[%clk 0:02:05]} 19. Qf2 {[%clk 0:02:28]}  Nf5 {[%clk 0:01:58]} 20. Bf4 {[%clk 0:02:27]}  Bxf4 {[%clk 0:01:39]} 21. Qxf4 {[%clk 0:02:27]}  Qxf4 {[%clk 0:01:40]} 22. Rxf4 {[%clk 0:02:26]}  Kg7 {[%clk 0:01:40]} 23. Rff1 {[%clk 0:02:19]}  Rc8 {[%clk 0:01:32]} 24. g4 {[%clk 0:02:13]}  Nd4 {[%clk 0:01:16]} 25. Rad1 {[%clk 0:02:07]}  Rd7 {[%clk 0:01:16]} 26. Rd3 {[%clk 0:02:01]}  Rcd8 {[%clk 0:01:01]} 27. Kg2 {[%clk 0:01:37]}  Nc6 {[%clk 0:00:52]} 28. Rfd1 {[%clk 0:01:32]}  Rxd3 {[%clk 0:00:50]} 29. Rxd3 {[%clk 0:01:33]}  Rxd3 {[%clk 0:00:39]} 30. cxd3 {[%clk 0:01:34]}  Nd4 {[%clk 0:00:38]} 31. g5 {[%clk 0:01:27]}  h6 {[%clk 0:00:32]} 32. h4 {[%clk 0:01:27]}  Nf5 {[%clk 0:00:33]} 33. Kh3 {[%clk 0:01:24]}  b6 {[%clk 0:00:32]} 34. Ne4 {[%clk 0:01:24]}  Nd4 {[%clk 0:00:32]} 35. Bc4 {[%clk 0:01:18]}  Nf5 {[%clk 0:00:31]} 36. a4 {[%clk 0:01:09]}  a5 {[%clk 0:00:28]} 37. b3 {[%clk 0:01:06]}  h5 {[%clk 0:00:18]} 38. Nf6 {[%clk 0:01:02]}  Kf8 {[%clk 0:00:11]} 39. Nd7+ {[%clk 0:01:01]}  Ke7 {[%clk 0:00:12]} 40. Nxb6 {[%clk 0:01:02]}  Kd6 {[%clk 0:00:13]} 41. Bb5 {[%clk 0:00:59]}  Kc5 {[%clk 0:00:12]} 42. Nc4 {[%clk 0:00:59]}  Kb4 {[%clk 0:00:11]} 43. Be8 {[%clk 0:00:52]} 1-0


[Site "https://www.chess.com"]